bitfinex/quotes_SOLUSD_20251018
["timestamp","ask_amount","ask_price","bid_price","bid_amount"]
[1760814391142,0.71,186.15,186.14,0.2]
[1760814391492,4.17286024,186.15,186.14,0.2]
[1760814394002,37.92933545,186.15,186.14,0.2]
[1760814394403,43.30134726,186.15,186.14,0.2]
[1760814394608,45.45622941,186.15,186.14,0.2]
[1760814396517,40.0842176,186.15,186.14,0.2]
[1760814397999,37.92933545,186.15,186.14,0.2]
[1760814409333,43.30134726,186.15,186.14,0.2]
[1760814410128,39.83848702,186.15,186.14,0.2]
[1760814410322,43.30134726,186.15,186.14,0.2]
[1760814411442,37.21933545,186.15,186.14,0.2]
[1760814411646,14.33933545,186.15,186.14,0.2]
[1760814414149,15.00933545,186.15,186.14,0.2]
[1760814414936,15.00933545,186.15,186.13,0.2]
[1760814414937,10.87647521,186.14,186.13,0.2]
[1760814415129,10.87647521,186.14,186.11,0.2]
[1760814415130,17.80219569,186.14,186.11,0.2]
[1760814415334,6.92572048,186.12,186.11,0.2]
[1760814415852,7.59572048,186.12,186.11,0.2]
[1760814416745,6.92572048,186.12,186.11,0.2]
[1760814417349,26.34286024,186.12,186.11,0.2]
[1760814420654,30.47572048,186.12,186.11,0.2]
[1760814421851,46.7250734,186.12,186.11,0.2]
[1760814422044,22.88,186.08,186.07,0.2]
[1760814422228,37.21933545,186.08,186.07,0.2]
[1760814422427,37.21933545,186.08,186.07,0.89]
[1760814426460,37.21933545,186.08,186.07,0.2]
[1760814428760,4.15546274,186.14,186.07,5.57432149]
[1760814428974,1e-08,186.16,186.14,10.87647521]
[1760814429144,0.69,186.31,186.21,22.88]
[1760814429464,0.69,186.31,186.22,3.46286024]
[1760814429658,0.69,186.3,186.22,8.92883692]
[1760814430452,0.69,186.3,186.24,3.46286024]
[1760814430958,10.87647521,186.29,186.24,3.46286024]
[1760814431262,10.87647521,186.3,186.24,3.46286024]
[1760814431467,0.69,186.29,186.24,3.46286024]
[1760814431669,10.87647521,186.3,186.24,8.83224883]
[1760814431967,11.56647521,186.3,186.24,8.83224883]
[1760814432651,0.69,186.3,186.24,8.83224883]
[1760814432852,23.57,186.3,186.25,16.14682849]
[1760814433444,22.88,186.3,186.25,16.14682849]
[1760814433650,23.57,186.32,186.26,3.46286024]
[1760814434367,23.57,186.32,186.25,16.14682849]
[1760814434368,10.87647521,186.29,186.25,16.14682849]
[1760814434668,37.21933545,186.27,186.18,3.46286024]
[1760814434993,22.88,186.24,186.19,16.14682849]
[1760814435170,0.69,186.23,186.16,8.83433121]
[1760814435377,0.69,186.23,186.16,23.17366666]
[1760814436376,0.69,186.23,186.16,8.83433121]
[1760814436563,4.15286024,186.22,186.16,5.37147097]
[1760814436768,4.15286024,186.22,186.16,5.16557897]
[1760814437468,4.15286024,186.23,186.16,8.62843921]
[1760814439255,105.56286024,186.22,186.16,5.16557897]
[1760814439454,3.46286024,186.21,186.16,5.16557897]
[1760814439655,4.15286024,186.21,186.16,5.16557897]
[1760814440555,0.69,186.21,186.16,5.16557897]
[1760814441286,0.69,186.21,186.15,8.83487205]
[1760814443158,102.1,186.22,186.16,3.46286024]
[1760814443479,102.1,186.21,186.15,8.83487205]
[1760814444164,102.1,186.21,186.16,3.46286024]
[1760814444361,102.79,186.21,186.16,8.8343078]
[1760814444558,102.1,186.21,186.16,8.8343078]
[1760814444778,0.69,186.2,186.16,8.8343078]
[1760814444986,102.1,186.21,186.16,8.8343078]
[1760814445157,102.79,186.21,186.16,8.8343078]
[1760814445357,102.1,186.21,186.16,5.37144756]
[1760814445558,0.69,186.2,186.16,5.37144756]
[1760814446365,0.69,186.2,186.15,5.37201181]
[1760814449275,3.46286024,186.18,186.11,3.46286024]
[1760814449601,3.46286024,186.16,186.1,3.46286024]
[1760814449771,4.15286024,186.15,186.09,3.46286024]
[1760814450965,4.15286024,186.15,186.1,5.37345513]
[1760814451170,0.69,186.15,186.1,8.83631537]
[1760814451370,102.1,186.17,186.12,3.46286024]
[1760814451572,102.1,186.17,186.13,3.46286024]
[1760814452092,102.79,186.17,186.13,3.46286024]
[1760814452682,102.79,186.17,186.13,8.83522683]
[1760814453095,102.1,186.17,186.13,8.83522683]
[1760814454079,102.79,186.17,186.13,8.83522683]
[1760814454997,102.79,186.17,186.13,5.37236659]
[1760814455187,102.1,186.16,186.13,5.37236659]
[1760814455589,102.79,186.16,186.12,3.46286024]
[1760814457192,102.79,186.16,186.13,5.37258905]
[1760814457393,102.1,186.16,186.13,22.26692191]
[1760814457596,102.1,186.16,186.15,3.46286024]
[1760814459499,102.1,186.16,186.15,8.83487205]
[1760814460611,102.1,186.16,186.15,3.46286024]
[1760814461889,102.1,186.16,186.15,8.83487205]
[1760814462287,3.46286024,186.22,186.15,8.83487205]
[1760814462288,102.1,186.21,186.15,22.26490159]
[1760814462493,102.1,186.2,186.18,3.46286024]
[1760814462895,102.79,186.2,186.18,3.46286024]
[1760814463401,102.79,186.2,186.18,8.8338525]
[1760814463587,102.1,186.2,186.18,8.8338525]
[1760814464187,102.1,186.2,186.18,5.37099226]
[1760814464583,102.76,186.2,186.18,5.37099226]
[1760814465203,102.1,186.2,186.18,5.37099226]
[1760814465607,102.1,186.2,186.19,3.46286024]
[1760814466710,102.1,186.2,186.18,8.8338525]
[1760814467890,102.1,186.2,186.15,18.80204135]
[1760814468091,102.1,186.2,186.19,3.46286024]
[1760814469009,102.1,186.2,186.19,8.83371796]
[1760814471297,102.76,186.2,186.19,31.71371796]
[1760814472313,102.76,186.2,186.18,5.37110996]
[1760814472528,0.66,186.19,186.16,3.46286024]
[1760814472712,102.1,186.2,186.16,8.83458348]
[1760814472915,0.66,186.18,186.16,8.83458348]
[1760814473120,0.66,186.18,186.17,3.46286024]
[1760814473809,0.66,186.18,186.17,8.83429495]
[1760814475102,102.1,186.2,186.17,22.26288172]
[1760814475303,0.66,186.2,186.19,3.46286024]
[1760814475708,0.66,186.2,186.18,3.46286024]
[1760814475909,0.66,186.19,186.18,3.46286024]
[1760814476500,0.66,186.21,186.19,5.37085772]
[1760814476702,0.66,186.2,186.19,8.83371796]
[1760814480230,0.66,186.2,186.17,13.42858677]
[1760814480404,0.66,186.2,186.19,3.46286024]
[1760814480807,22.88,186.24,186.17,13.42858677]
[1760814481007,22.88,186.24,186.17,3.46286024]
[1760814481008,0.66,186.2,186.17,3.46286024]
[1760814481317,0.66,186.19,186.17,3.46286024]
[1760814481521,0.66,186.18,186.17,3.46286024]
[1760814482319,0.66,186.18,186.17,8.83429495]
[1760814482512,0.66,186.18,186.15,3.46286024]
[1760814482717,0.66,186.17,186.14,3.46286024]
[1760814483024,0.66,186.16,186.14,3.46286024]
[1760814483325,0.66,186.16,186.15,8.83482554]
[1760814484811,0.66,186.16,186.15,5.3719653]
[1760814485721,0.66,186.16,186.13,5.37253685]
[1760814485920,0.66,186.15,186.13,5.37253685]
[1760814486120,0.71,186.14,186.13,5.37253685]
[1760814486510,0.71,186.14,186.12,13.43154981]
[1760814486511,0.71,186.14,186.12,3.46286024]
[1760814487928,0.71,186.14,186.13,5.37258905]
[1760814490426,0.71,186.14,186.11,3.46286024]
[1760814490735,0.71,186.13,186.11,3.46286024]
[1760814490914,3.46286024,186.16,186.1,13.43292905]
[1760814491236,0.71,186.15,186.1,16.89578929]
[1760814491615,0.71,186.14,186.1,16.89578929]
[1760814491929,0.71,186.13,186.09,5.37374388]
[1760814492134,0.71,186.12,186.09,5.37374388]
[1760814492336,0.71,186.11,186.09,5.37374388]
[1760814492515,0.71,186.11,186.08,8.83689291]
[1760814493026,3.46286024,186.14,186.08,8.83689291]
[1760814493220,0.71,186.13,186.08,8.83689291]
[1760814493419,0.65,186.12,186.08,8.83689291]
[1760814493622,0.65,186.11,186.08,8.83689291]
[1760814495052,3.46286024,186.14,186.08,8.83689291]
[1760814495333,0.65,186.13,186.08,8.83689291]
[1760814495523,3.46286024,186.14,186.08,8.83689291]
[1760814495722,0.65,186.12,186.08,8.83689291]
[1760814495935,0.65,186.11,186.08,8.83689291]
[1760814497723,0.65,186.1,186.07,0.2]
[1760814498040,3.46286024,186.11,186.07,0.2]
[1760814498342,0.65,186.1,186.07,0.2]
[1760814499135,0.65,186.1,186.07,5.57421191]
[1760814499342,0.65,186.09,186.07,0.2]
[1760814499539,3.46286024,186.11,186.07,0.2]
[1760814499851,0.65,186.13,186.1,3.46286024]
[1760814500053,0.65,186.15,186.11,3.46286024]
[1760814500223,0.65,186.15,186.12,3.46286024]
[1760814500423,0.65,186.15,186.11,3.46286024]
[1760814500632,0.65,186.15,186.07,48.68201475]
[1760814500633,0.65,186.15,186.12,3.46286024]
[1760814501340,0.65,186.17,186.13,8.83544929]
[1760814501546,0.65,186.16,186.13,8.83544929]
[1760814501748,0.65,186.15,186.13,8.83544929]
[1760814504550,22.88,186.18,186.13,8.83544929]
[1760814504743,0.65,186.17,186.14,3.46286024]
[1760814504944,0.65,186.16,186.14,3.46286024]
[1760814505969,0.65,186.15,186.13,5.37250062]
[1760814506168,0.65,186.14,186.12,8.83568084]
[1760814506650,26.34286024,186.18,186.12,8.83568084]
[1760814506836,0.65,186.17,186.12,8.83568084]
[1760814507035,0.65,186.16,186.12,8.83568084]
[1760814507254,0.65,186.15,186.12,8.83568084]
[1760814508657,0.65,186.15,186.13,3.46286024]
[1760814510464,0.65,186.15,186.13,8.83525961]
[1760814511538,22.88,186.18,186.14,3.46286024]
[1760814511742,0.65,186.17,186.14,3.46286024]
[1760814512048,0.65,186.16,186.14,3.46286024]
[1760814512241,22.88,186.18,186.14,3.46286024]
[1760814512444,0.65,186.18,186.15,3.46286024]
[1760814512775,0.65,186.18,186.16,3.46286024]
[1760814513337,10.87647521,186.24,186.11,22.88]
[1760814513338,0.65,186.2,186.17,3.46286024]
[1760814513558,0.65,186.19,186.17,8.83404896]
[1760814514942,0.65,186.21,186.17,8.83404896]
[1760814515142,0.65,186.2,186.17,8.83404896]
[1760814516240,22.88,186.23,186.18,3.46286024]
[1760814516455,0.65,186.22,186.19,3.46286024]
[1760814516680,0.65,186.21,186.19,3.46286024]
[1760814517550,0.65,186.2,186.18,3.46286024]
[1760814518272,0.65,186.2,186.18,8.83380373]
[1760814519471,0.65,186.2,186.19,3.46286024]
[1760814522338,22.88,186.23,186.19,8.83368371]
[1760814522542,0.65,186.21,186.19,8.83368371]
[1760814522752,0.65,186.2,186.19,8.83368371]
[1760814523152,22.88,186.23,186.19,8.83368371]
[1760814523153,0.65,186.23,186.19,8.83368371]
[1760814523355,0.65,186.23,186.21,3.46286024]
[1760814523544,10.87647521,186.29,186.21,3.46286024]
[1760814523545,0.68,186.24,186.21,3.46286024]
[1760814524389,0.68,186.26,186.23,3.46286024]
[1760814524549,0.68,186.25,186.23,8.83254772]
[1760814525870,0.68,186.24,186.23,8.83254772]
[1760814527064,0.68,186.26,186.23,8.83254772]
[1760814527270,0.68,186.25,186.23,8.83254772]
[1760814528268,26.34286024,186.29,186.23,8.83254772]
[1760814528471,0.68,186.28,186.23,8.83254772]
[1760814528659,0.68,186.27,186.23,8.83254772]
[1760814528970,0.68,186.26,186.23,8.83254772]
[1760814529167,0.68,186.25,186.23,8.83254772]
[1760814529366,0.68,186.27,186.24,3.46286024]
[1760814529552,0.68,186.27,186.25,3.46286024]
[1760814530068,0.68,186.29,186.26,3.46286024]
[1760814530264,0.68,186.29,186.27,3.46286024]
[1760814531145,0.68,186.31,186.28,3.46286024]
[1760814532268,0.68,186.31,186.25,10.87647521]
[1760814532269,0.68,186.33,186.3,8.83053126]
[1760814532470,0.1,186.35,186.3,8.83053126]
[1760814532471,0.68,186.32,186.3,8.83053126]
[1760814532675,0.68,186.32,186.31,3.46286024]
[1760814533569,0.68,186.33,186.31,3.46286024]
[1760814533780,0.1,186.35,186.32,3.46286024]
[1760814533955,0.78,186.35,186.33,3.46286024]
[1760814534454,0.78,186.35,186.33,8.82955046]
[1760814534655,0.1,186.35,186.33,8.82955046]
[1760814534875,0.1,186.35,186.34,3.46286024]
[1760814536489,0.1,186.35,186.34,8.82939453]
[1760814541190,1e-08,186.35,186.34,19.70586974]
[1760814542097,0.1,186.38,186.37,22.88]
[1760814542395,0.1,186.38,186.37,26.34286024]
[1760814542875,0.1,186.38,186.37,31.95666286]
[1760814543389,0.1,186.4,186.38,10.87647521]
[1760814543580,0.1,186.4,186.39,6.92572048]
[1760814545283,0.1,186.4,186.39,12.29081517]
[1760814545590,0.1,186.4,186.39,8.82795493]
[1760814546499,0.1,186.4,186.39,12.29081517]
[1760814546999,0.1,186.4,186.39,14.44141061]
[1760814547577,0.1,186.4,186.39,25.31788582]
[1760814547796,0.1,186.45,186.4,10.87647521]
[1760814548098,0.1,186.45,186.44,3.46286024]
[1760814548473,0.1,186.45,186.44,7.9232855]
[1760814549496,0.1,186.45,186.44,18.79976071]
[1760814549692,0.1,186.45,186.44,24.16341657]
[1760814550375,3.79042526,186.48,186.47,22.88]
[1760814550573,3.79042526,186.48,186.47,29.80572048]
[1760814550780,4.65719124,186.52,186.48,10.87647521]
[1760814550999,4.65719124,186.52,186.51,3.46286024]
[1760814551175,3.98719124,186.52,186.51,3.46286024]
[1760814551498,3.98719124,186.52,186.51,8.12005148]
[1760814551696,3.98719124,186.52,186.51,13.48169428]
[1760814553195,3.98719124,186.52,186.51,24.35816949]
[1760814557495,0.1,186.53,186.52,33.75647521]
[1760814557689,0.1,186.54,186.52,64.45933545]
[1760814557904,4.0807232,186.59,186.54,33.75647521]
[1760814558107,4.0807232,186.59,186.54,37.21933545]
[1760814558320,4.0807232,186.59,186.54,60.99647521]
[1760814558505,4.0807232,186.59,186.58,3.46286024]
[1760814559309,4.27425516,186.66,186.6,10.87647521]
[1760814559513,4.87748918,186.62,186.61,3.46286024]
[1760814560812,4.87748918,186.62,186.61,8.34034942]
[1760814561004,4.17748918,186.62,186.61,8.34034942]
[1760814561401,4.17748918,186.62,186.61,13.69911904]
[1760814563110,4.17748918,186.62,186.61,24.57559425]
[1760814564502,4.17748918,186.62,186.61,21.11273401]
[1760814564812,4.87748918,186.62,186.61,24.57559425]
[1760814565191,4.17748918,186.62,186.61,24.57559425]
[1760814565619,4.17748918,186.62,186.61,21.11273401]
[1760814565801,4.17748918,186.62,186.61,24.57559425]
[1760814568116,4.87748918,186.62,186.61,4.87748918]
[1760814570139,4.87748918,186.62,186.58,3.46286024]
[1760814570304,0.7,186.61,186.58,3.46286024]
[1760814570509,0.7,186.6,186.58,3.46286024]
[1760814570914,0.7,186.59,186.58,3.46286024]
[1760814571613,0.7,186.59,186.58,12.99980939]
[1760814572005,0.7,186.59,186.58,9.53694915]
[1760814573205,0.7,186.59,186.58,4.17748918]
[1760814573411,0.7,186.59,186.58,9.53712043]
[1760814574826,0.7,186.59,186.58,4.17748918]
[1760814578423,0.7,186.59,186.54,3.46286024]
[1760814578619,3.46286024,186.6,186.55,16.11733419]
[1760814578620,0.7,186.58,186.55,16.11733419]
[1760814578818,0.7,186.57,186.55,16.11733419]
[1760814579015,4.17748918,186.62,186.55,16.11733419]
[1760814579016,0.7,186.56,186.55,16.11733419]
[1760814579215,0.7,186.56,186.51,3.46286024]
[1760814579429,3.46286024,186.57,186.54,4.17748918]
[1760814579430,0.7,186.55,186.54,4.17748918]
[1760814580032,0.7,186.57,186.54,7.64034942]
[1760814580340,0.7,186.57,186.55,8.82314736]
[1760814581628,0.7,186.59,186.56,3.46286024]
[1760814581828,0.7,186.59,186.57,3.46286024]
[1760814582037,0.7,186.59,186.58,3.46286024]
[1760814582422,4.17748918,186.62,186.58,8.82249149]
[1760814582733,0.7,186.61,186.59,3.46286024]
[1760814583127,0.7,186.6,186.59,4.27425516]
[1760814583328,0.7,186.6,186.58,8.82249149]
[1760814583528,0.7,186.6,186.59,3.46286024]
[1760814584737,0.7,186.6,186.59,8.82220425]
[1760814584931,4.17748918,186.62,186.59,8.82220425]
[1760814584932,4.85748918,186.62,186.59,8.82220425]
[1760814585156,0.68,186.61,186.59,8.82220425]
[1760814587130,4.17748918,186.62,186.6,8.82191704]
[1760814587330,4.17748918,186.62,186.61,3.46286024]
[1760814587524,4.17748918,186.62,186.61,11.19997564]
[1760814588340,4.17748918,186.62,186.61,16.55874526]
[1760814591048,4.37102114,186.69,186.64,22.88]
[1760814591253,4.37102114,186.69,186.68,33.75647521]
[1760814591451,4.46778711,186.73,186.72,33.75647521]
[1760814591646,5.14778711,186.73,186.72,26.34286024]
[1760814591835,5.14778711,186.73,186.72,22.88]
[1760814592255,4.46778711,186.73,186.72,38.90426232]
[1760814592451,4.46778711,186.73,186.72,42.36712256]
[1760814593261,4.46778711,186.73,186.72,47.72273524]
[1760814593832,4.46778711,186.73,186.72,44.259875]
[1760814594037,5.14778711,186.73,186.72,8.61064735]
[1760814594456,5.14778711,186.73,186.69,33.75647521]
[1760814594457,5.14778711,186.73,186.7,3.46286024]
[1760814594758,5.14778711,186.73,186.72,3.46286024]
[1760814595736,5.14778711,186.73,186.72,8.81847292]
[1760814596737,4.46778711,186.73,186.72,8.81847292]
[1760814597139,5.14778711,186.73,186.72,8.81847292]
[1760814597543,5.14778711,186.73,186.71,10.50366307]
[1760814597744,4.46778711,186.73,186.72,3.46286024]
[1760814598464,5.14778711,186.73,186.71,10.50366307]
[1760814598643,0.68,186.72,186.71,10.50366307]
[1760814600458,0.68,186.72,186.71,13.96652331]
[1760814601562,0.68,186.72,186.71,10.50366307]
[1760814602043,0.68,186.72,186.71,5.14778711]
[1760814602355,4.14286024,186.72,186.66,5.35730832]
[1760814602659,4.46778711,186.73,186.57,3.46286024]
[1760814602660,4.14286024,186.71,186.65,5.35734246]
[1760814602864,0.68,186.7,186.65,5.35734246]
[1760814603039,0.68,186.69,186.65,5.35734246]
[1760814603457,0.68,186.69,186.64,3.46286024]
[1760814603458,0.68,186.68,186.64,4.56455309]
[1760814603644,0.68,186.67,186.64,4.56455309]
[1760814603845,0.68,186.66,186.64,4.56455309]
[1760814604059,0.68,186.65,186.64,4.56455309]
[1760814604243,0.68,186.65,186.64,9.92246136]
[1760814604445,0.68,186.65,186.64,4.56455309]
[1760814604663,0.68,186.65,186.61,8.82162986]
[1760814604861,0.68,186.64,186.61,13.28941697]
[1760814605275,3.46286024,186.67,186.61,13.28941697]
[1760814605276,0.68,186.63,186.61,13.28941697]
[1760814606052,0.68,186.63,186.61,9.82655673]
[1760814606563,0.68,186.62,186.61,4.46778711]
[1760814606867,0.68,186.62,186.58,22.88]
[1760814606868,0.68,186.62,186.57,14.33933545]
[1760814607042,0.68,186.61,186.58,13.39768995]
[1760814607365,0.68,186.6,186.58,13.39768995]
[1760814607562,0.68,186.59,186.58,13.39768995]
[1760814607774,0.68,186.61,186.58,13.39768995]
[1760814608065,0.68,186.6,186.58,13.39768995]
[1760814608251,3.46286024,186.63,186.58,13.39768995]
[1760814608558,0.68,186.59,186.57,8.8227564]
[1760814610364,26.34286024,186.64,186.58,3.46286024]
[1760814610550,0.68,186.62,186.58,3.46286024]
[1760814610751,0.68,186.61,186.58,3.46286024]
[1760814611051,0.68,186.6,186.58,3.46286024]
[1760814611246,0.68,186.6,186.57,8.8227564]
[1760814611565,0.68,186.59,186.57,8.8227564]
[1760814611964,0.68,186.59,186.58,3.46286024]
[1760814612145,0.68,186.59,186.58,8.82249149]
[1760814612344,124.98,186.67,186.58,8.82249149]
[1760814612549,102.78,186.66,186.61,3.46286024]
[1760814612952,0.68,186.65,186.62,3.46286024]
[1760814613467,0.68,186.64,186.63,3.46286024]
[1760814614555,0.68,186.64,186.62,8.82118351]
[1760814616862,0.68,186.63,186.6,45.10391127]
[1760814617172,102.1,186.66,186.59,5.35914376]
[1760814617173,0.68,186.62,186.59,5.35914376]
[1760814617351,0.68,186.61,186.59,5.35914376]
[1760814617548,0.68,186.6,186.59,5.35914376]
[1760814617751,0.68,186.6,186.58,5.35958799]
[1760814617974,3.46286024,186.64,186.58,8.82244823]
[1760814618279,0.68,186.6,186.58,8.82244823]
[1760814618574,0.68,186.59,186.58,5.35958799]
[1760814619073,0.68,186.59,186.57,8.82272974]
[1760814619578,3.46286024,186.63,186.57,8.82272974]
[1760814619782,0.68,186.58,186.57,8.82272974]
[1760814621569,0.68,186.58,186.57,5.3598695]
[1760814624174,0.68,186.58,186.56,3.46286024]
[1760814624483,0.68,186.57,186.55,5.36046349]
[1760814625153,3.46286024,186.61,186.55,5.36046349]
[1760814625352,22.88,186.64,186.53,8.82366419]
[1760814625353,4.14286024,186.6,186.53,8.82366419]
[1760814625559,102.78,186.59,186.53,8.82366419]
[1760814625768,0.68,186.58,186.55,3.46286024]
[1760814625955,0.68,186.57,186.55,3.46286024]
[1760814626158,0.68,186.57,186.55,8.82330476]
[1760814626474,102.78,186.59,186.52,29.52090077]
[1760814626679,102.78,186.59,186.56,3.46286024]
[1760814626883,0.68,186.58,186.56,3.46286024]
[1760814627681,102.1,186.59,186.56,3.46286024]
[1760814627887,0.68,186.57,186.55,3.46286024]
[1760814628483,102.1,186.59,186.55,3.46286024]
[1760814628684,0.68,186.56,186.55,3.46286024]
[1760814629269,0.68,186.56,186.54,5.36057928]
[1760814629569,0.68,186.55,186.54,5.36057928]
[1760814629779,102.1,186.59,186.54,8.82343952]
[1760814629985,0.68,186.58,186.54,8.82343952]
[1760814630294,0.68,186.57,186.54,8.82343952]
[1760814630489,0.68,186.56,186.54,8.82343952]
[1760814632108,0.68,186.56,186.53,8.82392816]
[1760814635790,105.56286024,186.59,186.53,8.82392816]
[1760814635791,0.68,186.55,186.53,5.36106792]
[1760814636596,0.68,186.54,186.53,5.36106792]
[1760814636794,0.68,186.54,186.52,5.36128355]
[1760814637595,3.46286024,186.57,186.52,5.36128355]
[1760814637797,0.68,186.56,186.52,5.36128355]
[1760814638100,0.68,186.55,186.52,5.36128355]
[1760814638398,0.68,186.54,186.52,5.36128355]
[1760814639477,0.68,186.54,186.51,3.46286024]
[1760814640696,0.68,186.54,186.52,5.36135535]
[1760814644698,3.46286024,186.58,186.52,5.36135535]
[1760814644878,0.69,186.53,186.52,5.36135535]
[1760814647803,0.69,186.53,186.5,5.36189267]
[1760814648005,0.69,186.55,186.51,3.46286024]
[1760814648185,102.1,186.57,186.51,3.46286024]
[1760814648386,102.79,186.56,186.51,3.46286024]
[1760814648802,0.69,186.55,186.51,3.46286024]
[1760814648987,102.1,186.56,186.51,3.46286024]
[1760814649187,0.69,186.54,186.52,5.36135535]
[1760814652414,0.69,186.53,186.52,5.36135535]
[1760814653009,0.69,186.53,186.51,5.36159249]
[1760814653211,0.69,186.52,186.51,5.36159249]
[1760814653403,0.69,186.52,186.5,5.36187015]
[1760814653603,0.69,186.51,186.49,5.36221781]
[1760814654302,0.69,186.52,186.49,8.82507805]
[1760814654502,0.69,186.52,186.5,3.46286024]
[1760814655093,105.56286024,186.56,186.5,3.46286024]
[1760814655294,0.69,186.55,186.5,3.46286024]
[1760814655596,0.69,186.54,186.51,5.3616428]
[1760814655813,0.69,186.53,186.51,5.3616428]
[1760814656900,0.69,186.52,186.51,5.3616428]
[1760814657696,105.56286024,186.56,186.51,5.3616428]
[1760814657903,0.69,186.58,186.55,3.46286024]
[1760814659212,0.69,186.58,186.56,5.36020583]
[1760814661525,102.79,186.6,186.56,8.82306607]
[1760814661817,0.69,186.59,186.56,8.82306607]
[1760814663322,102.1,186.6,186.56,8.82306607]
[1760814663917,0.69,186.59,186.57,3.46286024]
[1760814664297,0.69,186.59,186.57,8.82257283]
[1760814665403,102.1,186.6,186.58,3.46286024]
[1760814665717,102.79,186.6,186.59,3.46286024]
[1760814666714,102.79,186.6,186.58,8.8223169]
[1760814667017,102.1,186.6,186.58,8.8223169]
[1760814667226,102.1,186.6,186.59,3.46286024]
[1760814667802,102.77,186.6,186.59,3.46286024]
[1760814668218,102.77,186.6,186.57,3.46286024]
[1760814668434,0.67,186.59,186.56,5.36020583]
[1760814668611,0.67,186.58,186.54,13.4004766]
[1760814668813,0.67,186.57,186.53,3.46286024]
[1760814669024,3.46286024,186.59,186.53,3.46286024]
[1760814669025,0.67,186.56,186.53,3.46286024]
[1760814669718,0.67,186.56,186.54,5.36078052]
[1760814669903,0.67,186.55,186.54,5.36078052]
[1760814670506,0.67,186.55,186.53,5.36100101]
[1760814670830,0.67,186.54,186.53,5.36100101]
[1760814671738,0.67,186.54,186.51,5.3616428]
[1760814671906,0.67,186.53,186.51,5.3616428]
[1760814674422,0.72,186.55,186.51,5.3616428]
[1760814674626,0.72,186.54,186.51,5.3616428]
[1760814674929,0.72,186.54,186.51,8.82450304]
[1760814675417,0.72,186.54,186.51,22.22861005]
[1760814677126,0.72,186.53,186.51,22.22861005]
[1760814677511,0.72,186.55,186.51,22.22861005]
[1760814677711,0.72,186.54,186.51,22.22861005]
[1760814677907,0.72,186.54,186.51,13.40410701]
[1760814679631,0.72,186.54,186.51,18.76574981]
[1760814680132,0.72,186.53,186.51,18.76574981]
[1760814681335,3.46286024,186.56,186.51,18.76574981]
[1760814681508,0.72,186.55,186.51,18.76574981]
[1760814681713,0.72,186.54,186.51,18.76574981]
[1760814683640,0.72,186.54,186.51,16.86696725]
[1760814684834,0.72,186.54,186.51,22.22861005]
[1760814685131,102.1,186.6,186.49,16.11993229]
[1760814685132,0.72,186.53,186.49,21.48188213]
[1760814685314,22.88,186.62,186.49,21.48188213]
[1760814685315,0.72,186.52,186.49,8.82481008]
[1760814685512,0.72,186.52,186.49,22.23035461]
[1760814688446,0.72,186.54,186.52,22.88]
[1760814688629,102.1,186.59,186.52,22.88]
[1760814688833,0.72,186.53,186.52,22.88]
[1760814689322,0.72,186.53,186.5,3.46286024]
[1760814689643,0.72,186.53,186.51,5.3616428]
[1760814695643,4.18286024,186.52,186.5,5.3619026]
[1760814695822,0.72,186.51,186.5,5.3619026]
[1760814696638,0.72,186.51,186.49,5.36221781]
[1760814697446,0.72,186.5,186.49,5.36221781]
[1760814699650,0.72,186.5,186.48,5.36250536]
[1760814700941,0.72,186.49,186.47,5.36270933]
[1760814701339,0.72,186.49,186.47,8.82556957]
[1760814702775,0.72,186.49,186.46,8.82594079]
[1760814703756,0.72,186.49,186.48,5.36250536]
[1760814704361,4.18286024,186.49,186.45,6.26268587]
[1760814704565,130.34069709,186.55,186.48,16.12426433]